fUSD/lending_fUSD_20240828
["ID","MTS","AMOUNT","RATE_DAILY","PERIOD"]
[336429446,1724821878608,-151.0,0.00011,2]
[336429447,1724821878619,-152.996631,0.00011,2]
[336429448,1724821878629,-165.37973,0.00011,2]
[336429449,1724821878639,-165.37973,0.00011,2]
[336429450,1724821878648,-202.598134,0.00011,2]
[336429451,1724821878658,-202.598134,0.00011,2]
[336429452,1724821878667,-151.0,0.00011,2]
[336429453,1724821878678,-151.0,0.00011,2]
[336429454,1724821878688,-151.0,0.00011,2]
[336429455,1724821878697,-151.0,0.00011,2]
[336429456,1724821878707,-151.0,0.00011,2]
[336429457,1724821878717,-151.0,0.00011,2]
[336429458,1724821878730,-156.043172,0.00011,2]
[336429459,1724821878740,-156.043172,0.00011,2]
[336429460,1724821878749,-156.043172,0.00011,2]
[336429461,1724821878759,-156.043172,0.00011,2]
[336429462,1724821878769,-151.0,0.00011,2]
[336429463,1724821878779,-151.0,0.00011,2]
[336429464,1724821878788,-151.0,0.00011,2]
[336429465,1724821878798,-151.0,0.00011,2]
[336429466,1724821878809,-287.864882,0.00011,2]
[336429467,1724821878819,-287.864882,0.00011,2]
[336429468,1724821878830,-287.864882,0.00011,2]
[336429469,1724821878841,-287.864882,0.00011,2]
[336429470,1724821878850,-237.067669,0.00011,2]
[336429471,1724821879128,-237.067669,0.00011,2]
[336429472,1724821879151,-237.067669,0.00011,2]
[336429473,1724821879170,-237.067669,0.00011,2]
[336429474,1724821879180,-151.0,0.00011,2]
[336429475,1724821879190,-151.0,0.00011,2]
[336429476,1724821879199,-617.153955,0.00011,2]
[336429477,1724821879209,-617.153955,0.00011,2]
[336429478,1724821879220,-617.153955,0.00011,2]
[336429479,1724821879229,-617.153955,0.00011,2]
[336429480,1724821879239,-233.428906,0.00011,2]
[336429481,1724821879249,-233.428906,0.00011,2]
[336429482,1724821879258,-233.428906,0.00011,2]
[336429483,1724821879268,-151.0,0.00011,2]
[336429484,1724821879278,-233.428906,0.00011,2]
[336429485,1724821879287,-152.52165,0.00011,2]
[336429486,1724821879297,-151.903114,0.00011,2]
[336429487,1724821879307,-151.0,0.00011,2]
[336429488,1724821879316,-151.0,0.00011,2]
[336429489,1724821879326,-151.0,0.00011,2]
[336429490,1724821879335,-151.0,0.00011,2]
[336429491,1724821879345,-151.0,0.00011,2]
[336429492,1724821879354,-151.0,0.00011,2]
[336429493,1724821879363,-151.0,0.00011,2]
[336429494,1724821879373,-224.748316,0.00011,2]
[336429495,1724821879383,-154.337283,0.00011,2]
[336429496,1724821879392,-151.0,0.00011,2]
[336429497,1724821879401,-151.0,0.00011,2]
[336429498,1724821879410,-151.0,0.00011,2]
[336429499,1724821879420,-151.0,0.00011,2]
[336429500,1724821879429,-454.8,0.00011,2]
[336429501,1724821879439,-151.0,0.00011,2]
[336429502,1724821879448,-151.0,0.00011,2]
[336429503,1724821879457,-151.0,0.00011,2]
[336429504,1724821879467,-151.0,0.00011,2]
[336429505,1724821879477,-3299.23,0.00011,2]
[336429506,1724821879487,-2130.273036,0.00011003,2]
[336429507,1724821879500,-1000.0,0.00011003,2]
[336429508,1724821879510,-41246.0209933,0.00011012,2]
[336429509,1724821879519,-910.7672693,0.0001102,2]
[336429510,1724821879529,-10247.312099,0.00011029,2]
[336429511,1724821879539,-200.0,0.00011105,2]
[336429512,1724821879548,-2000.0,0.00011105,2]
[336429513,1724821879557,-200.0,0.00011105,2]
[336429514,1724821879566,-420.0,0.00011105,2]
[336429515,1724821879578,-268.09,0.00011143,2]
[336429516,1724821879587,-1100.0,0.00011216,2]
[336429517,1724821879597,-1300.0,0.00011216,2]
[336429518,1724821879606,-200.0,0.00011216,2]
[336429519,1724821879616,-200.0,0.00011216,2]
[336429520,1724821879625,-412.22100901,0.00011312,2]
[336429521,1724821879635,-200.0,0.00011328,2]
[336429522,1724821879644,-200.0,0.00011328,2]
[336429523,1724821879654,-200.0,0.00011441,2]
[336429524,1724821879663,-177.78,0.00011545,2]
[336429525,1724821879672,-185.321,0.00011575,2]
[336429526,1724821879682,-291.0,0.0001166,2]
[336429527,1724821879691,-840.53168709,0.00011678,2]
[336429528,1724821879701,-798.31225995,0.00011693,2]
[336429529,1724821879710,-300.09,0.00011849,2]
[336429530,1724821879721,-207.0,0.000119,2]
[336429531,1724821879736,-2000.0,0.00012,2]
[336429532,1724821879746,-155.0,0.00012,2]
[336429533,1724821879755,-164.5256891,0.00012,10]
[336429534,1724821879765,-5000.0,0.00012,2]
[336429535,1724821879776,-500.0,0.00012038,2]
[336429536,1724821879785,-3000.0,0.0001208,2]
[336429537,1724821879795,-17970.47,0.00012087,2]
[336429538,1724821879806,-19561.25,0.00012087,2]
[336429539,1724821879815,-155.0,0.00012111,2]
[336429540,1724821879825,-150.42,0.00012188,2]
[336429541,1724821879834,-150.0,0.00012188,2]
[336429542,1724821879844,-150.0,0.00012188,2]
[336429543,1724821879853,-150.0,0.00012188,2]
[336429544,1724821879863,-185.321,0.00012214,2]
[336429545,1724821879873,-587.0,0.00012214,2]
[336429546,1724821879883,-1000.0,0.00012226,2]
[336429547,1724821879893,-207.0,0.0001223,2]
[336429548,1724821879903,-11504.0,0.000123,3]
[336429549,1724821879913,-1000.0,0.00012345,5]
[336429550,1724821879922,-268.09,0.00012381,2]
[336429551,1724821879931,-840.53168709,0.00012566,2]
[336429552,1724821879941,-207.0,0.0001257,2]
[336429553,1724821879951,-500.0,0.00012586,2]
[336429554,1724821879960,-1100.0,0.00012586,2]
[336429555,1724821879972,-1300.0,0.00012586,2]
[336429556,1724821879981,-11504.0,0.000127,5]
[336429557,1724821879990,-562.94,0.0001271,2]
[336429558,1724821880000,-207.0,0.000129,2]
[336429559,1724821880009,-2050.799999,0.00013,2]
[336429560,1724821880019,-1604.8700747,0.00013,3]
[336429561,1724821880029,-295.265368,0.00013,2]
[336429562,1724821880039,-177.78,0.00013194,2]
[336429563,1724821880049,-207.0,0.0001323,2]
[336429564,1724821880059,-791.18,0.00013276,2]
[336429565,1724821880068,-155.89117512,0.00013327,2]
[336429566,1724821880078,-3000.0,0.0001333,2]
[336429567,1724821880087,-990.82644324,0.00013333,2]
[336429568,1724821880097,-150.0,0.00013397,2]
[336429569,1724821880106,-150.0,0.00013397,2]
[336429570,1724821880115,-150.0,0.00013397,2]
[336429571,1724821880125,-150.0,0.00013397,2]
[336429572,1724821880135,-150.0,0.00013397,2]
[336429573,1724821880144,-823.0,0.00013434,2]
[336429574,1724821880153,-1000.0,0.00013449,2]
[336429575,1724821880163,-840.53168709,0.00013453,2]
[336429576,1724821880173,-1000.0,0.00013456,7]
[336429577,1724821880182,-421.43,0.00013505,2]
[336429578,1724821880192,-207.0,0.0001356,2]
[336429579,1724821880201,-268.09,0.00013619,2]
[336429580,1724821880211,-500.0,0.00013682,2]
[336429581,1724821880222,-500.34042791,0.00013698,2]
[336429582,1724821880232,-1768.11,0.00013699,2]
[336429583,1724821880241,-2751.0,0.00013699,2]
[336429584,1724821880250,-500.0,0.00013699,2]
[336429585,1724821880260,-200.0,0.00013699,2]
[336429586,1724821880270,-151.0,0.00013699,2]
[336429587,1724821880279,-151.0,0.00013699,2]
[336429588,1724821880290,-151.0,0.00013699,2]
[336429589,1724821880300,-151.0,0.00013699,2]
[336429590,1724821880309,-151.0,0.00013699,2]
[336429591,1724821880319,-151.0,0.00013699,2]
[336429592,1724821880328,-713.79,0.00013699,2]
[336429593,1724821880337,-500.0,0.00013773,2]
[336429594,1724821880347,-349.53,0.00013785,2]
[336429595,1724821880356,-427.06,0.00013785,2]
[336429596,1724821880365,-151.0,0.000138,2]
[336429597,1724821880375,-611479.107209,0.000138,2]
[336429598,1724821880384,-152.0,0.00013818,3]
[336429599,1724821880393,-150.0,0.0001383,2]
[336429600,1724821880402,-623.0,0.00013884,2]
[336429601,1724821880411,-207.0,0.0001389,2]
[336429602,1724821880420,-8483.1587561,0.0001389,2]
[336429603,1724821880431,-812.300195,0.0001389,2]
[336429604,1724821880440,-36807.8526525,0.0001389,2]
[336429605,1724821880449,-2180.6306871,0.0001389,2]
[336429606,1724821880458,-151.0,0.000139,2]
[336429607,1724821880468,-151.0,0.000139,2]
[336429608,1724821880478,-259.116735,0.000139,2]
[336429609,1724821880487,-259.116735,0.000139,2]
[336429610,1724821880500,-420.139067,0.000139,2]
[336429611,1724821880509,-420.139067,0.000139,2]
[336429612,1724821880518,-151.242374,0.000139,2]
[336429613,1724821880527,-151.0,0.000139,2]
[336429614,1724821880537,-151.0,0.000139,2]
[336429615,1724821880546,-274.548278,0.000139,2]
[336429616,1724821880555,-151.0,0.000139,2]
[336429617,1724821880565,-274.548278,0.000139,2]
[336429618,1724821880575,-151.0,0.000139,2]
[336429619,1724821880584,-151.0,0.000139,2]
[336429620,1724821880593,-201.682187,0.000139,2]
[336429621,1724821880602,-151.0,0.000139,2]
[336429622,1724821880612,-151.0,0.000139,2]
[336429623,1724821880621,-300.595261,0.000139,2]
[336429624,1724821880630,-300.595261,0.000139,2]
[336429625,1724821880640,-202.298497,0.000139,2]
[336429626,1724821880649,-202.298497,0.000139,2]
[336429627,1724821880658,-151.0,0.000139,2]
[336429628,1724821880668,-154.393694,0.000139,2]
[336429629,1724821880677,-154.393694,0.000139,2]
[336429630,1724821880686,-151.0,0.000139,2]
[336429631,1724821880695,-151.0,0.000139,2]
[336429632,1724821880706,-151.0,0.000139,2]
[336429633,1724821880715,-151.814504,0.000139,2]
[336429634,1724821880726,-429.411835,0.000139,2]
[336429635,1724821880735,-429.411835,0.000139,2]
[336429636,1724821880745,-155.715875,0.000139,2]
[336429637,1724821880754,-151.0,0.000139,2]
[336429638,1724821880764,-151.0,0.000139,2]
[336429639,1724821880774,-156.941222,0.000139,2]
[336429640,1724821880784,-156.941222,0.000139,2]
[336429641,1724821880794,-151.0,0.000139,2]
[336429642,1724821880804,-151.0,0.000139,2]
[336429643,1724821880814,-151.0,0.000139,2]
[336429644,1724821880824,-168.128125,0.000139,2]
[336429645,1724821880834,-168.128125,0.000139,2]
[336429646,1724821880843,-151.0,0.000139,2]
[336429647,1724821880853,-192.868212,0.000139,2]
[336429648,1724821880862,-192.868212,0.000139,2]
[336429649,1724821880872,-151.0,0.000139,2]
[336429650,1724821880882,-159.803887,0.000139,2]
[336429651,1724821880891,-2813.920438,0.000139,2]
[336429652,1724821880901,-508.420059,0.000139,2]
[336429653,1724821880910,-2813.920438,0.000139,2]
[336429654,1724821880919,-508.420059,0.000139,2]
[336429655,1724821880929,-151.0,0.000139,2]
[336429656,1724821880938,-151.0,0.000139,2]
[336429657,1724821880947,-295.354528,0.000139,2]
[336429658,1724821880957,-165.37973,0.000139,2]
[336429659,1724821880967,-202.598134,0.000139,2]
[336429660,1724821880978,-165.37973,0.000139,2]
[336429661,1724821880987,-202.598134,0.000139,2]
[336429662,1724821880997,-206.468712,0.000139,2]
[336429663,1724821881007,-151.0,0.000139,2]
[336429664,1724821881017,-151.0,0.000139,2]
[336429665,1724821881026,-156.043172,0.000139,2]
[336429666,1724821881037,-156.043172,0.000139,2]
[336429667,1724821881046,-151.0,0.000139,2]
[336429668,1724821881056,-219.566549,0.000139,2]
[336429669,1724821881066,-287.864882,0.000139,2]
[336429670,1724821881076,-287.864882,0.000139,2]
[336429671,1724821881086,-237.067669,0.000139,2]
[336429672,1724821881095,-237.067669,0.000139,2]
[336429673,1724821881104,-271.507087,0.000139,2]
[336429674,1724821881113,-617.153955,0.000139,2]
[336429675,1724821881123,-617.153955,0.000139,2]
[336429676,1724821881134,-624855.387211,0.000139,2]
[336429677,1724821881145,-233.428906,0.000139,2]
[336429678,1724821881155,-233.428906,0.000139,2]
[336429679,1724821881164,-151.0,0.000139,2]
[336429680,1724821881175,-151.0,0.000139,2]
[336429681,1724821881184,-151.0,0.000139,2]
[336429682,1724821881196,-151.0,0.000139,2]
[336429683,1724821881206,-151.0,0.000139,2]
[336429684,1724821881215,-151.0,0.000139,2]
[336429685,1724821881226,-151.0,0.000139,2]
[336429686,1724821881236,-151.0,0.000139,2]
[336429687,1724821881246,-152.0,0.0001391,4]
[336429688,1724821881256,-5851.0,0.00013917,2]
[336429689,1724821881267,-3730.0,0.00013917,2]
[336429690,1724821881277,-13456.0,0.00013917,2]
[336429691,1724821881286,-289.0,0.00013917,2]
[336429692,1724821881297,-1100.0,0.00013956,2]
[336429693,1724821881306,-1300.0,0.00013956,2]
[336429694,1724821881316,-900.302877,0.00013973,2]
[336429695,1724821881325,-151.0,0.00013985,2]
[336429696,1724821881334,-150.0,0.00014,2]
[336429697,1724821881344,-1922.0,0.00014,2]
[336429698,1724821881353,-150.0,0.00014,2]
[336429699,1724821881363,-152.0,0.00014002,5]
[336429700,1724821881372,-152.0,0.00014095,6]
[336429701,1724821881382,-152.0,0.00014187,7]
[336429702,1724821881392,-334.06165666,0.00014218,2]
[336429703,1724821881402,-207.0,0.0001422,2]
[336429704,1724821881411,-901.9,0.00014235,2]
[336429705,1724821881421,-1582.17,0.00014235,2]
[336429706,1724821881431,-791.12,0.00014235,2]
[336429707,1724821881441,-791.18,0.00014235,2]
[336429708,1724821881451,-725.81,0.00014235,2]
[336429709,1724821881460,-438.62,0.00014235,2]
[336429710,1724821881471,-424.21,0.00014235,2]
[336429711,1724821881480,-421.66,0.00014235,2]
[336429712,1724821881491,-421.66,0.00014235,2]
[336429713,1724821881503,-152.0,0.00014279,8]
[336429714,1724821881512,-500.0,0.00014321,2]
[336429715,1724821881522,-840.53168709,0.00014341,2]
[336429716,1724821881531,-152.0,0.00014371,9]
[336429717,1724821881540,-1768.11,0.00014384,2]
[336429718,1724821881550,-150.0,0.000144,2]
[336429719,1724821881559,-150.0,0.000144,2]
[336429720,1724821881570,-150.0,0.000144,2]
[336429721,1724821881580,-201.06496126,0.000144,2]
[336429722,1724821881589,-60689.32388854,0.0001444,2]
[336429723,1724821881599,-4700.0,0.00014463,7]
[336429724,1724821881609,-152.0,0.00014464,10]
[336429725,1724821881618,-501.26,0.000145,5]
[336429726,1724821881628,-155.0,0.00014517,2]
[336429727,1724821881637,-207.0,0.0001455,2]
[336429728,1724821881647,-210.0,0.0001455,2]
[336429729,1724821881656,-152.0,0.00014556,11]
[336429730,1724821881665,-3000.0,0.0001458,2]
[336429731,1724821881675,-152.0,0.00014648,12]
[336429732,1724821881685,-1000.0,0.00014671,2]
[336429733,1724821881694,-155.0,0.00014681,2]
[336429734,1724821881703,-152.0,0.0001474,13]
[336429735,1724821881714,-246.78791639,0.00014754,2]
[336429736,1724821881724,-153.0,0.00014762,2]
[336429737,1724821881734,-1000.0,0.00014765,10]
[336429738,1724821881743,-1152.0,0.00014776,2]
[336429739,1724821881753,-236.23987764,0.00014778,2]
[336429740,1724821881762,-900.302877,0.00014795,2]
[336429741,1724821881771,-152.0,0.00014833,14]
[336429742,1724821881781,-177.78,0.00014844,2]
[336429743,1724821881790,-150.0,0.0001485,2]
[336429744,1724821881799,-268.09,0.00014858,2]
[336429745,1724821881809,-207.0,0.0001488,2]
[336429746,1724821881819,-210.0,0.0001488,2]
[336429747,1724821881829,-155.4,0.000149,31]
[336429748,1724821881839,-155.4,0.000149,31]
[336429749,1724821881849,-155.4,0.000149,31]
[336429750,1724821881859,-155.4,0.000149,31]
[336429751,1724821881989,-155.4,0.000149,31]
[336429752,1724821881999,-155.4,0.000149,31]
[336429753,1724821882010,-155.4,0.000149,31]
[336429754,1724821882019,-155.4,0.000149,31]
[336429755,1724821882029,-635.1613568,0.000149,2]
[336429756,1724821882038,-152.0,0.00014925,15]
[336429757,1724821882048,-562.94,0.00014956,2]
[336429758,1724821882057,-795.0,0.00014966,2]
[336429759,1724821882067,-216.5,0.00014977,2]
[336429760,1724821882077,-125724.06770557,0.00015,2]
[336429761,1724821882088,-5389.0,0.00015,2]
[336429762,1724821882097,-500.0,0.00015,10]
[336429763,1724821882107,-2514.79775167,0.00015,10]
[336429764,1724821882118,-7000.0,0.00015,4]
[336429765,1724821882129,-398.03789703,0.00015,2]
[336429766,1724821882138,-10000.0,0.00015,2]
[336429767,1724821882148,-450.07368462,0.00015,2]
[336429768,1724821882158,-2159.45635661,0.00015,2]
[336429769,1724821882169,-677.19052903,0.00015,2]
[336429770,1724821882179,-496.0,0.00015,2]
[336429771,1724821882189,-496.0,0.00015,2]
[336429772,1724821882199,-496.0,0.00015,2]
[336429773,1724821882208,-593.12,0.00015,2]
[336429774,1724821882219,-3484.76457668,0.00015,10]
[336429775,1724821882230,-94829.33635842,0.00015,2]
[336429776,1724821882440,-1241.67838036,0.00015,2]
[336429777,1724821882453,-846.87167762,0.00015,2]
[336429778,1724821882606,-1301.90749695,0.00010976,2]
[336429779,1724821882618,-3343.97506869,0.00010976,2]
[336429780,1724821882630,-306.87628347,0.00010976,2]
[336429781,1724821882642,-2435.38767799,0.00010976,2]
[336429782,1724821882654,-4786.36046934,0.00010976,2]
[336429783,1724821882669,-1028.443,0.00010976,2]
[336429784,1724821882691,-298.57312534,0.00010976,2]
[336429785,1724821882702,-594.66,0.00010976,2]
[336429786,1724821882713,-29.72687822,0.00010976,2]
[336429787,1724821882723,-370.27312178,0.00010976,2]
[336429788,1724821882830,-3738.04,0.00010945,2]
[336429789,1724821882839,-4806.649393,0.00010976,2]
[336429790,1724821883823,-1062.95999981,0.00010976,2]
[336429791,1724821883834,-862.29711614,0.00010976,2]
[336429792,1724821883916,-279.405,0.00010958,2]
[336429793,1724821883930,-418.595,0.00010958,2]
[336429794,1724821883939,-477.13793621,0.00010976,2]
[336429796,1724822445305,1050.0,0.0001,2]
[336429797,1724822512300,132.0,9.334e-05,2]
[336429798,1724822512326,370.55,9.334e-05,2]
[336429799,1724822533947,159.37,8.695e-05,2]
[336429801,1724822574496,1286.88241187,8.695e-05,2]
[336429802,1724822575349,412.52932434,8.695e-05,2]
[336429803,1724822579956,792.18820323,8.695e-05,2]
[336429804,1724822580575,286.21979955,8.695e-05,2]
[336429805,1724822582875,16254.4986388,8.695e-05,2]
[336429806,1724822583379,292.02845645,8.695e-05,2]
[336429807,1724822583762,3108.44355562,8.695e-05,2]
[336429808,1724822585170,604.79063016,8.695e-05,2]
[336429809,1724822599922,159.29368206,8.695e-05,2]
[336429810,1724822662973,792.18820323,8.695e-05,2]
[336429811,1724822673408,355.29454076,8.695e-05,2]
[336429812,1724822682625,507.46228865,8.695e-05,2]
[336429815,1724822761972,792.18820323,8.695e-05,2]
[336429816,1724822806920,160.17572349,8.695e-05,2]
[336429820,1724822862983,792.18820323,8.695e-05,2]
[336429824,1724822940990,799.8160543,8.695e-05,2]
[336429852,1724822966343,500.0,9.846e-05,2]
[336429855,1724822996612,500.0,9.91e-05,2]
[336429856,1724823022282,158.87,7.248e-05,2]
[336429872,1724823032136,-318.20681982,9.999e-05,2]
[336429875,1724823032146,-300.0,9.999e-05,2]
[336429878,1724823032155,-150.0,9.999e-05,2]
[336429881,1724823032164,-500.0,0.0001,2]
[336429883,1724823032173,-299.58519429,0.0001,2]
[336429884,1724823032183,-41466.7992683,0.0001,2]
[336429885,1724823032192,-1051.86058066,0.0001,2]
[336429886,1724823032206,-796.07378855,0.000101,2]
[336429888,1724823032215,-250.0,0.00010186,2]
[336429890,1724823032224,-2147.31496146,0.00010713,2]
[336429892,1724823032234,-688.02045246,0.00010799,2]
[336429894,1724823032243,-150.43,0.00010844,2]
[336429896,1724823032252,-422.6397,0.00010848,2]
[336429898,1724823032261,-299.99,0.00010861,2]
[336429900,1724823032270,-650.1146328,0.00010861,2]
[336429902,1724823032279,-704.65,0.00010862,2]
[336429904,1724823032288,-842.49,0.00010862,2]
[336429906,1724823032298,-155.0,0.00010862,2]
[336429908,1724823032307,-905.304,0.00010876,2]
[336429910,1724823032316,-6891.84108451,0.0001088,2]
[336429912,1724823032326,-150.99,0.0001088,2]
[336429914,1724823032335,-499.99,0.0001088,2]
[336429916,1724823032345,-2500.0,0.00010899,2]
[336429918,1724823032354,-420.26584359,0.00010899,2]
[336429920,1724823032363,-420.26584354,0.00010899,2]
[336429921,1724823032373,-420.26584354,0.00010899,2]
[336429922,1724823032382,-420.26584354,0.00010899,2]
[336429923,1724823032391,-420.26584354,0.00010899,2]
[336429924,1724823032401,-420.26584354,0.00010899,2]
[336429925,1724823032410,-420.26584354,0.00010899,2]
[336429926,1724823032419,-420.26584354,0.00010899,2]
[336429927,1724823032428,-420.26584354,0.00010899,2]
[336429928,1724823032438,-48717.01419926,0.000109,2]
[336429929,1724823032450,-7500.0,0.000109,2]
[336429930,1724823032459,-420.26584354,0.000109,2]
[336429931,1724823032468,-2500.0,0.000109,2]
[336429932,1724823032478,-345.36063455,0.000109,2]
[336429933,1724823032487,-1000.0,0.00010942,2]
[336429934,1724823032496,-1100.0,0.00010942,2]
[336429935,1724823032505,-500.0,0.00010942,2]
[336429936,1724823032515,-500.0,0.00010942,2]
[336429937,1724823032524,-500.0,0.00010958,2]
[336429938,1724823032533,-500.0,0.00010958,2]
[336429939,1724823032542,-500.0,0.00010958,2]
[336429940,1724823032551,-500.0,0.00010958,2]
[336429941,1724823032560,-500.0,0.00010958,2]
[336429942,1724823032569,-500.0,0.00010958,2]
[336429943,1724823032579,-500.0,0.00010958,2]
[336429944,1724823032589,-500.0,0.00010958,2]
[336429945,1724823032599,-500.0,0.00010958,2]
[336429946,1724823032610,-510.58336065,0.00010958,2]
[336429947,1724823032621,-500.0,0.00010958,2]
[336429948,1724823032631,-500.0,0.00010958,2]
[336429949,1724823032643,-500.0,0.00010958,2]
[336429950,1724823032653,-500.0,0.00010958,2]
[336429951,1724823032662,-500.0,0.00010958,2]
[336429952,1724823032671,-500.0,0.00010958,2]
[336429953,1724823032681,-500.0,0.00010958,2]
[336429954,1724823032692,-500.0,0.00010958,2]
[336429955,1724823032704,-500.0,0.00010958,2]
[336429956,1724823032713,-500.0,0.00010958,2]
[336429957,1724823032723,-3338.88227231,0.00010958,2]
[336429958,1724823032737,-2984.2065,0.00010958,2]
[336429968,1724823038274,-1379.86572107,0.00010958,2]
[336429974,1724823038335,-617.53442811,0.00010958,2]
[336429975,1724823038395,-21432.00107851,0.00010958,2]
[336429976,1724823038404,-180.96,0.00010959,2]
[336429977,1724823038414,-1798.39,0.00010959,2]
[336429978,1724823038423,-179.82,0.00010959,2]
[336429979,1724823038432,-829.41,0.00010959,2]
[336429980,1724823038442,-400.0,0.00010973,2]
[336429981,1724823038454,-500.0,0.00010974,2]
[336429982,1724823038464,-500.0,0.00010974,2]
[336429983,1724823038473,-500.0,0.00010974,2]
[336429984,1724823038483,-500.0,0.00010974,2]
[336429985,1724823038492,-500.0,0.00010974,2]
[336429986,1724823038502,-500.0,0.00010975,2]
[336429987,1724823038512,-500.0,0.00010975,2]
[336429988,1724823038522,-500.0,0.00010975,2]
[336429989,1724823038531,-500.0,0.00010975,2]
[336429990,1724823038541,-500.0,0.00010975,2]
[336429991,1724823038550,-500.0,0.00010975,2]
[336429992,1724823038560,-500.0,0.00010975,2]
[336429993,1724823038570,-500.0,0.00010975,2]
[336429994,1724823038579,-500.0,0.00010975,2]
[336429995,1724823038588,-500.0,0.00010975,2]
[336429996,1724823038598,-500.0,0.00010975,2]
[336429997,1724823038608,-500.0,0.00010975,2]
[336429998,1724823038617,-500.0,0.00010975,2]
[336429999,1724823038626,-237.43149262,0.00010975,2]
[336430000,1724823038636,-257.037403,0.00010976,2]
[336430001,1724823038646,-170.73845005,0.00010976,2]
[336430002,1724823038655,-162.95327982,0.00010976,2]
[336430003,1724823038665,-413.60566182,0.00010976,2]
[336430004,1724823038674,-284.93563115,0.00010976,2]
[336430005,1724823038684,-257.037403,0.00010977,2]
[336430007,1724823038694,-257.037403,0.00010977,2]
[336430008,1724823038705,-500.0,0.00010989,2]
[336430010,1724823038714,-500.0,0.00010989,2]
[336430012,1724823038723,-110929.34983759,0.0001099,2]
[336430013,1724823038733,-257.037403,0.00010993,2]
[336430014,1724823038743,-257.037403,0.00010993,2]
[336430015,1724823038752,-500.0,0.00010999,2]
[336430016,1724823038761,-500.0,0.00010999,2]
[336430017,1724823038770,-500.0,0.00010999,2]
[336430018,1724823038779,-284.48,0.00010999,2]
[336430019,1724823038788,-500.0,0.00010999,2]
[336430020,1724823038798,-500.0,0.00010999,2]
[336430021,1724823038807,-500.0,0.00010999,2]
[336430022,1724823038817,-500.0,0.00010999,2]
[336430023,1724823038827,-146.92989491,0.00010999,2]
[336430034,1724823038999,-353.07010509,0.00010999,2]
[336430036,1724823039008,-97.21243091,0.00010999,2]
[336430038,1724823039019,-402.78756909,0.00010999,2]
[336430040,1724823039028,-500.0,0.00010999,2]
[336430042,1724823039037,-170.11827006,0.00010999,2]
[336430044,1724823039046,-750.4,0.00010999,2]
[336430046,1724823039055,-750.4,0.00010999,2]
[336430047,1724823039064,-750.4,0.00010999,2]
[336430049,1724823039074,-750.4,0.00010999,2]
[336430051,1724823039083,-750.4,0.00010999,2]
[336430053,1724823039092,-750.4,0.00010999,2]
[336430055,1724823039101,-750.4,0.00010999,2]
[336430057,1724823039110,-750.4,0.00010999,2]
[336430059,1724823039119,-750.4,0.00010999,2]
[336430061,1724823039128,-750.4,0.00010999,2]
[336430063,1724823039137,-750.4,0.00010999,2]
[336430065,1724823039146,-750.4,0.00010999,2]